bitfinex-derivatives/quotes_SOLF0:USTF0_20260208
["timestamp","ask_amount","ask_price","bid_price","bid_amount"]
[1770509514878,8.79934229,87.42,87.381,9.15396911]
[1770509515179,8.79934229,87.419,87.381,9.15396911]
[1770509515379,8.79934229,87.418,87.381,9.15396911]
[1770509515580,8.79934229,87.417,87.381,9.15396911]
[1770509515773,8.79934229,87.416,87.381,9.15396911]
[1770509515974,8.79373695,87.415,87.381,9.15396911]
[1770509516176,10.3021,87.429,87.381,9.15396911]
[1770509516378,8.79196862,87.428,87.381,9.15396911]
[1770509516579,8.79196862,87.427,87.381,9.15396911]
[1770509516784,8.79196862,87.426,87.381,9.15396911]
[1770509517085,8.79196862,87.425,87.381,9.15396911]
[1770509517283,10.3021,87.429,87.381,9.15396911]
[1770509517284,8.79196862,87.424,87.381,9.15396911]
[1770509517483,8.79196862,87.423,87.381,9.15396911]
[1770509517684,8.79196862,87.422,87.381,9.15396911]
[1770509517885,8.79196862,87.421,87.381,9.15396911]
[1770509518180,10.3021,87.429,87.381,9.15396911]
[1770509518376,8.7882548,87.428,87.381,9.15396911]
[1770509518579,8.7882548,87.427,87.381,9.15396911]
[1770509518780,8.7882548,87.426,87.381,9.15396911]
[1770509518982,8.7882548,87.425,87.381,9.15396911]
[1770509519182,8.7882548,87.424,87.381,9.15396911]
[1770509519484,8.7882548,87.423,87.381,9.15396911]
[1770509519784,8.7882548,87.422,87.381,9.15396911]
[1770509520082,10.3021,87.429,87.381,9.15396911]
[1770509520083,8.7882548,87.421,87.381,9.15396911]
[1770509520284,8.7882548,87.42,87.381,9.15396911]
[1770509520585,8.7882548,87.419,87.381,9.15396911]
[1770509520785,8.7882548,87.418,87.381,9.15396911]
[1770509520981,8.7882548,87.417,87.381,9.15396911]
[1770509521187,10.3021,87.429,87.381,9.15396911]
[1770509521485,8.76995462,87.428,87.381,9.15396911]
[1770509521782,10.44,87.439,87.4,3.80771207]
[1770509521987,8.76895756,87.438,87.401,9.12907417]
[1770509522179,10.44,87.439,87.401,9.12907417]
[1770509522180,8.76895756,87.437,87.401,9.12907417]
[1770509522374,8.76895756,87.436,87.401,9.12907417]
[1770509522675,8.76895756,87.435,87.401,9.12907417]
[1770509522873,8.76895756,87.434,87.401,9.12907417]
[1770509523078,8.76895756,87.433,87.401,9.12907417]
[1770509523279,10.44,87.439,87.401,9.12907417]
[1770509525078,10.44,87.439,87.411,9.13087878]
[1770509533296,10.44,87.439,87.331,34.34]
[1770509533501,10.44,87.439,87.258,160.5671]
[1770509533502,3.80771207,87.43,87.391,9.13584295]
[1770509533698,8.752106,87.429,87.391,9.13584295]
[1770509533901,10.44,87.439,87.391,9.13584295]
[1770509534100,8.75272454,87.438,87.391,9.13584295]
[1770509534301,10.44,87.439,87.391,9.13584295]
[1770509534503,10.44,87.439,87.401,9.13584295]
[1770509538811,3.56692904,87.478,87.421,3.83891825]
[1770509539010,3.56692904,87.476,87.421,3.83891825]
[1770509539310,3.56692904,87.469,87.421,3.83891825]
[1770509539607,3.56692904,87.465,87.421,3.83891825]
[1770509540105,3.56692904,87.455,87.407,3.83891825]
[1770509540311,3.56692904,87.449,87.407,3.83891825]
[1770509540510,3.56692904,87.447,87.407,3.83891825]
[1770509540700,3.80771207,87.44,87.407,3.83891825]
[1770509540905,3.56692904,87.438,87.382,3.83891825]
[1770509541100,8.76374118,87.437,87.382,3.83891825]
[1770509541403,8.76374118,87.436,87.382,3.83891825]
[1770509541608,10.3015,87.434,87.382,3.83891825]
[1770509541908,8.76374118,87.433,87.382,3.83891825]
[1770509542110,10.3015,87.434,87.382,3.83891825]
[1770509542314,8.76968792,87.433,87.382,3.83891825]
[1770509542611,8.76968792,87.432,87.382,3.83891825]
[1770509542812,8.76968792,87.431,87.382,3.83891825]
[1770509543105,12.58063283,87.43,87.382,3.83891825]
[1770509543304,8.77292076,87.429,87.382,3.83891825]
[1770509543501,8.77292076,87.428,87.382,3.83891825]
[1770509543706,8.77292076,87.427,87.382,3.83891825]
[1770509543906,8.77292076,87.426,87.382,3.83891825]
[1770509544103,8.77292076,87.425,87.382,3.83891825]
[1770509544305,8.77292076,87.424,87.382,3.83891825]
[1770509544504,8.77292076,87.423,87.382,3.83891825]
[1770509544810,8.77292076,87.422,87.382,3.83891825]
[1770509545012,3.56692904,87.438,87.382,3.83891825]
[1770509545214,3.56692904,87.436,87.382,3.83891825]
[1770509545409,3.56692904,87.434,87.382,3.83891825]
[1770509545605,12.34943093,87.433,87.382,3.83891825]
[1770509545810,8.78250189,87.432,87.382,3.83891825]
[1770509546110,8.78250189,87.431,87.382,3.83891825]
[1770509546301,8.78250189,87.43,87.382,3.83891825]
[1770509546505,8.78250189,87.429,87.382,3.83891825]
[1770509546813,8.78250189,87.428,87.382,3.83891825]
[1770509547010,8.78250189,87.427,87.382,3.83891825]
[1770509547206,8.78250189,87.426,87.382,3.83891825]
[1770509547405,8.78250189,87.425,87.382,3.83891825]
[1770509547706,8.78250189,87.424,87.384,3.83891825]
[1770509547910,8.78250189,87.423,87.384,3.83891825]
[1770509548214,8.78250189,87.422,87.384,3.83891825]
[1770509548412,8.78250189,87.421,87.384,3.83891825]
[1770509548613,8.78250189,87.42,87.384,3.83891825]
[1770509548817,8.78250189,87.419,87.384,3.83891825]
[1770509549014,8.78250189,87.418,87.384,3.83891825]
[1770509549316,8.78250189,87.417,87.384,3.83891825]
[1770509549513,8.78250189,87.416,87.384,3.83891825]
[1770509549704,8.78250189,87.415,87.384,3.83891825]
[1770509550014,8.78250189,87.414,87.384,3.83891825]
[1770509550215,8.78250189,87.413,87.384,3.83891825]
[1770509550515,8.78250189,87.412,87.384,3.83891825]
[1770509550717,1.89e-06,87.411,87.384,3.83891825]
[1770509550916,3.56692904,87.43,87.384,3.83891825]
[1770509551411,3.56692904,87.43,87.386,3.83891825]
[1770509552239,3.56692904,87.429,87.388,3.83891825]
[1770509553221,14.16073726,87.429,87.388,3.83891825]
[1770509554319,3.56692904,87.428,87.388,3.83891825]
[1770509556420,3.56692904,87.428,87.389,10.3067]
[1770509556613,3.56692904,87.428,87.389,13.98161603]
[1770509557820,10.59380822,87.424,87.389,13.98161603]
[1770509558326,3.60107106,87.461,87.411,3.67491603]
[1770509559024,3.60107106,87.461,87.421,10.3029]
[1770509559325,3.60107106,87.461,87.422,3.67491603]
[1770509559821,3.60107106,87.461,87.428,10.3022]
[1770509560126,3.60107106,87.461,87.428,13.97711603]
[1770509560315,4.994e-05,87.489,87.462,13.97301603]
[1770509560519,3.60107106,87.504,87.462,3.67491603]
[1770509561319,3.60107106,87.504,87.449,3.67491603]
[1770509561519,3.60107106,87.499,87.449,3.67491603]
[1770509562626,3.60107106,87.497,87.449,3.67491603]
[1770509562828,3.60107106,87.469,87.42,3.67491603]
[1770509563025,3.60107106,87.467,87.42,3.67491603]
[1770509563229,3.80771207,87.46,87.42,3.67491603]
[1770509563527,8.56141374,87.459,87.42,3.67491603]
[1770509563728,8.56141374,87.458,87.42,3.67491603]
[1770509563928,8.56141374,87.457,87.42,3.67491603]
[1770509564127,8.56141374,87.456,87.42,3.67491603]
[1770509564329,8.56141374,87.455,87.42,3.67491603]
[1770509564531,8.56141374,87.454,87.42,3.67491603]
[1770509564828,8.56141374,87.453,87.42,3.67491603]
[1770509565028,8.56141374,87.452,87.42,3.67491603]
[1770509565230,8.56141374,87.451,87.42,3.67491603]
[1770509565429,3.60107106,87.465,87.42,3.67491603]
[1770509565629,3.60107106,87.463,87.42,3.67491603]
[1770509565819,3.60107106,87.461,87.42,3.67491603]
[1770509566022,8.56298163,87.46,87.42,3.67491603]
[1770509566218,8.56298163,87.459,87.42,3.67491603]
[1770509566423,8.56298163,87.458,87.42,3.67491603]
[1770509566719,8.56298163,87.457,87.42,3.67491603]
[1770509566923,8.56298163,87.456,87.42,3.67491603]
[1770509567121,8.56298163,87.455,87.42,3.67491603]
[1770509567425,8.56298163,87.454,87.42,3.67491603]
[1770509567621,8.56298163,87.453,87.42,3.67491603]
[1770509567832,8.56298163,87.452,87.42,3.67491603]
[1770509568031,8.56298163,87.451,87.42,3.67491603]
[1770509568332,3.60107106,87.461,87.42,3.67491603]
[1770509568522,12.1638361,87.46,87.42,3.67491603]
[1770509568723,8.56276504,87.459,87.42,3.67491603]
[1770509568931,8.56276504,87.458,87.42,3.67491603]
[1770509569133,8.56276504,87.457,87.42,7.4826281]
[1770509569322,8.56276504,87.456,87.42,7.4826281]
[1770509569528,8.56276504,87.455,87.42,7.4826281]
[1770509569724,3.60107106,87.472,87.431,3.67491603]
[1770509569930,8.56205473,87.471,87.431,3.67491603]
[1770509570130,8.56205473,87.47,87.431,3.67491603]
[1770509570437,8.56205473,87.469,87.431,3.67491603]
[1770509570729,8.56205473,87.468,87.431,3.67491603]
[1770509570928,8.56205473,87.467,87.431,3.67491603]
[1770509571129,8.56205473,87.466,87.431,3.67491603]
[1770509571329,8.56205473,87.465,87.431,3.67491603]
[1770509571526,8.56205473,87.464,87.431,3.67491603]
[1770509571730,3.60107106,87.462,87.418,3.67491603]
[1770509571929,3.60107106,87.46,87.41,3.80771207]
[1770509572130,3.60107106,87.46,87.406,3.67491603]
[1770509572131,3.60107106,87.458,87.406,3.67491603]
[1770509572437,3.60107106,87.456,87.41,3.80771207]
[1770509572632,3.60107106,87.454,87.41,3.80771207]
[1770509572833,3.60107106,87.452,87.41,3.80771207]
[1770509573133,3.60107106,87.45,87.41,3.80771207]
[1770509573332,8.56205473,87.449,87.41,3.80771207]
[1770509573531,8.56205473,87.448,87.42,3.80771207]
[1770509573730,3.60107106,87.462,87.42,3.80771207]
[1770509573933,3.60107106,87.46,87.42,3.80771207]
[1770509574134,8.56033042,87.459,87.42,3.80771207]
[1770509574338,8.56033042,87.458,87.42,3.80771207]
[1770509574635,8.56033042,87.457,87.42,3.80771207]
[1770509574835,8.56033042,87.456,87.42,3.80771207]
[1770509575036,8.56033042,87.455,87.42,3.80771207]
[1770509575237,8.56033042,87.454,87.42,3.80771207]
[1770509575439,8.56033042,87.453,87.42,3.80771207]
[1770509575638,8.56033042,87.453,87.411,13.97901603]
[1770509575639,3.60107106,87.471,87.43,3.80771207]
[1770509575836,3.60107106,87.469,87.43,3.80771207]
[1770509576140,8.55942373,87.468,87.43,3.80771207]
[1770509576338,8.55942373,87.467,87.43,3.80771207]
[1770509576539,8.55942373,87.466,87.43,3.80771207]
[1770509576740,8.55942373,87.465,87.43,3.80771207]
[1770509576935,8.55942373,87.464,87.43,3.80771207]
[1770509577129,8.55942373,87.463,87.43,3.80771207]
[1770509577434,8.55942373,87.462,87.43,3.80308699]
[1770509577637,8.55942373,87.461,87.43,3.80308699]
[1770509577840,8.55942373,87.46,87.43,3.80308699]
[1770509578140,8.55942373,87.459,87.43,3.80308699]
[1770509578339,3.60107106,87.469,87.43,3.80308699]
[1770509578340,8.55942373,87.458,87.43,3.80308699]
[1770509578541,3.60107106,87.469,87.43,3.80308699]
[1770509578739,8.5576391,87.468,87.43,3.80308699]
[1770509578936,8.5576391,87.467,87.43,3.80308699]
[1770509579139,8.5576391,87.466,87.43,3.80308699]
[1770509579341,8.5576391,87.465,87.43,3.80308699]
[1770509579638,8.5576391,87.464,87.43,3.80308699]
[1770509579839,8.5576391,87.463,87.43,3.80308699]
[1770509580044,8.5576391,87.462,87.43,3.80308699]
[1770509580236,8.5576391,87.461,87.43,3.80308699]
[1770509580429,8.5576391,87.46,87.43,3.80308699]
[1770509580633,3.60107106,87.469,87.43,3.80308699]
[1770509580840,8.49012387,87.468,87.43,3.80308699]
[1770509581035,8.49012387,87.467,87.43,3.80308699]
[1770509581339,8.49012387,87.466,87.43,3.80308699]
[1770509581541,8.49012387,87.465,87.43,3.80308699]
[1770509581742,8.49012387,87.464,87.43,3.80308699]
[1770509581938,8.49012387,87.463,87.43,3.80308699]
[1770509582137,8.49012387,87.462,87.43,3.80308699]
[1770509582342,8.49012387,87.461,87.43,3.80308699]
[1770509582543,8.49012387,87.46,87.43,3.80308699]
[1770509582845,3.60107106,87.469,87.431,3.67491603]
[1770509583047,8.4890558,87.468,87.431,3.67491603]
[1770509583240,8.4890558,87.467,87.431,3.67491603]
[1770509583543,8.4890558,87.466,87.431,3.67491603]
[1770509583840,8.4890558,87.465,87.431,3.67491603]
[1770509584041,8.4890558,87.464,87.431,3.67491603]
[1770509584235,8.4890558,87.463,87.431,3.67491603]
[1770509584432,8.4890558,87.462,87.431,3.67491603]
[1770509584646,3.60107106,87.469,87.44,3.80308699]
[1770509585144,3.80308699,87.53,87.461,3.67491603]
[1770509585330,3.80308699,87.53,87.471,3.67491603]
[1770509586641,3.80308699,87.52,87.471,3.67491603]
[1770509586944,10.2917,87.518,87.471,3.67491603]
[1770509587145,14.22429751,87.518,87.471,3.67491603]
[1770509588151,3.93259751,87.509,87.46,3.80308699]
[1770509591449,3.93259751,87.509,87.471,3.91947458]
[1770509591651,3.93259751,87.509,87.48,3.80308699]
[1770509591945,3.70469965,87.525,87.48,3.80308699]
[1770509593251,3.70469965,87.525,87.49,3.80308699]
[1770509595955,3.70469965,87.561,87.52,3.80308699]
[1770509596354,3.70469965,87.561,87.519,3.58541851]
[1770509596552,3.70469965,87.561,87.52,3.80308699]
[1770509596753,8.40874476,87.56,87.52,3.80308699]
[1770509597056,3.70469965,87.561,87.52,3.80308699]
[1770509597247,3.70469965,87.56,87.52,3.80308699]
[1770509598458,3.70469965,87.579,87.54,3.80308699]
[1770509599154,3.70469965,87.579,87.531,3.58541851]
[1770509599357,10.2822,87.598,87.551,3.58541851]
[1770509599855,3.70469965,87.592,87.551,3.58541851]
[1770509601854,10.2832,87.59,87.551,3.58541851]
[1770509604057,13.98789965,87.59,87.551,3.58541851]
[1770509605057,3.70469965,87.589,87.551,3.58541851]
[1770509607559,10.2834,87.588,87.551,3.58541851]
[1770509608547,13.98809965,87.588,87.551,3.58541851]
[1770509608857,3.70469965,87.579,87.523,3.58541851]
[1770509609053,20.5572,87.629,87.511,3.58541851]
[1770509609054,3.70469965,87.569,87.511,3.58541851]
[1770509609358,3.70469965,87.559,87.511,3.58541851]
[1770509610845,10.287,87.557,87.511,3.58541851]
[1770509613455,3.70469965,87.556,87.511,3.58541851]
[1770509613650,10.2874,87.554,87.511,3.58541851]
[1770509618963,14.11873457,87.554,87.511,3.58541851]
[1770509619163,3.83133457,87.553,87.511,3.58541851]
[1770509622269,10.2878,87.55,87.511,3.58541851]
[1770509625578,3.83133457,87.546,87.5,3.80308699]
[1770509625778,3.83133457,87.539,87.489,3.94742937]
[1770509626476,21.31681226,87.59,87.426,159.88]
[1770509626477,3.83133457,87.554,87.511,3.94742937]
[1770509627475,3.83133457,87.554,87.52,3.80308699]
[1770509627674,3.83133457,87.579,87.521,3.94742937]
[1770509627871,3.83133457,87.577,87.521,3.94742937]
[1770509628084,3.83133457,87.575,87.521,3.94742937]
[1770509628279,3.83133457,87.573,87.521,3.94742937]
[1770509628483,3.83133457,87.571,87.521,3.94742937]
[1770509628685,10.2861,87.565,87.521,3.94742937]
[1770509628882,8.36722872,87.57,87.51,7.75051636]
[1770509628883,3.83133457,87.563,87.51,7.75051636]
[1770509629183,3.83133457,87.561,87.511,3.94742937]
[1770509629385,3.83133457,87.559,87.511,3.94742937]
[1770509629583,3.83133457,87.557,87.511,3.94742937]
[1770509629885,3.83133457,87.555,87.511,3.94742937]
[1770509630185,8.38609654,87.554,87.511,3.94742937]
[1770509630380,8.38609654,87.554,87.51,3.80308699]
[1770509630381,3.83133457,87.568,87.521,3.94742937]
[1770509630687,3.83133457,87.566,87.521,3.94742937]
[1770509630879,3.83133457,87.564,87.521,3.94742937]
[1770509631079,8.38595837,87.563,87.521,3.94742937]
[1770509631282,8.38595837,87.562,87.521,3.94742937]
[1770509631482,8.38595837,87.561,87.521,3.94742937]
[1770509631683,8.38595837,87.56,87.521,3.94742937]
[1770509631880,8.38595837,87.559,87.53,3.80308699]
[1770509632078,8.38595837,87.558,87.53,3.80308699]
[1770509632275,3.83133457,87.564,87.531,3.94742937]
[1770509632483,8.3896608,87.563,87.531,3.94742937]
[1770509632782,3.83133457,87.564,87.531,3.94742937]
[1770509632983,8.38965728,87.563,87.531,3.94742937]
[1770509633184,8.39255347,87.562,87.531,3.94742937]
[1770509633386,3.83133457,87.564,87.531,3.94742937]
[1770509633582,8.39255347,87.563,87.54,3.80308699]
[1770509633785,3.83133457,87.575,87.55,3.80308699]
[1770509634483,3.83133457,87.59,87.551,3.94742937]
[1770509634685,8.39325686,87.589,87.56,3.80308699]
[1770509634880,8.39325686,87.588,87.56,3.80308699]
[1770509635188,8.39325686,87.587,87.551,3.94742937]
[1770509635487,8.39325686,87.586,87.551,3.94742937]
[1770509635693,8.39325686,87.585,87.551,3.94742937]
[1770509635987,8.39325686,87.584,87.551,3.94742937]
[1770509636188,8.39325686,87.583,87.551,3.94742937]
[1770509636489,3.83133457,87.581,87.54,7.75051636]
[1770509636687,8.39325686,87.58,87.55,3.80308699]
[1770509636878,8.39325686,87.579,87.56,3.80308699]
[1770509637084,3.83133457,87.592,87.56,3.80308699]
[1770509637286,8.39997433,87.591,87.56,3.80308699]
[1770509637489,8.39997433,87.59,87.551,3.94742937]
[1770509637791,8.39997433,87.589,87.551,3.94742937]
[1770509638089,8.39997433,87.588,87.551,3.94742937]
[1770509638288,8.39997433,87.587,87.551,3.94742937]
[1770509638488,8.39997433,87.586,87.56,3.80308699]
[1770509638688,8.39997433,87.585,87.56,3.80308699]
[1770509638884,8.39997433,87.584,87.56,3.80308699]
[1770509639079,8.39997433,87.583,87.56,3.80308699]
[1770509639389,8.39997433,87.582,87.56,3.79221599]
[1770509639590,8.39997433,87.581,87.56,3.79221599]
[1770509639891,3.83133457,87.592,87.56,3.79221599]
[1770509640191,8.39915264,87.591,87.551,3.94742937]
[1770509640390,8.39915264,87.59,87.551,3.94742937]
[1770509640590,8.39915264,87.589,87.551,3.94742937]
[1770509640790,8.39915264,87.588,87.551,3.94742937]
[1770509640990,8.39915264,87.587,87.551,3.94742937]
[1770509641193,8.39915264,87.586,87.551,3.94742937]
[1770509641486,12.23048721,87.585,87.551,3.94742937]
[1770509641686,3.83133457,87.583,87.53,3.79221599]
[1770509641991,3.83133457,87.579,87.531,3.94742937]
[1770509642295,3.83133457,87.577,87.531,3.94742937]
[1770509642486,3.83133457,87.575,87.531,3.94742937]
[1770509642688,3.83133457,87.573,87.531,3.94742937]
[1770509642887,8.39915264,87.572,87.531,3.94742937]
[1770509643090,8.39915264,87.571,87.54,3.79221599]
[1770509643393,3.83133457,87.573,87.54,3.79221599]
[1770509643394,8.39915264,87.57,87.54,3.79221599]
[1770509643581,8.39915264,87.569,87.531,3.94742937]
[1770509643786,8.39915264,87.568,87.531,3.94742937]
[1770509644087,8.39915264,87.567,87.531,3.94742937]
[1770509644287,8.39915264,87.566,87.531,3.94742937]
[1770509644493,8.39915264,87.565,87.531,3.94742937]
[1770509644694,8.39915264,87.564,87.531,3.94742937]
[1770509644990,8.39915264,87.563,87.531,3.94742937]
[1770509645192,8.39915264,87.562,87.531,3.94742937]
[1770509645386,3.83133457,87.573,87.531,3.94742937]
[1770509645591,8.40404838,87.572,87.531,3.94742937]
[1770509645792,8.40404838,87.571,87.531,3.94742937]
[1770509646087,8.40404838,87.57,87.531,3.94742937]
[1770509646394,8.40404838,87.569,87.531,3.94742937]
[1770509646693,8.40404838,87.568,87.531,3.94742937]
[1770509646885,8.40404838,87.567,87.531,3.94742937]
[1770509647082,8.40404838,87.566,87.531,3.94742937]
[1770509647282,8.40404838,87.565,87.531,3.94742937]
[1770509647490,8.40404838,87.564,87.531,3.94742937]
[1770509647693,8.40404838,87.563,87.531,3.94742937]
[1770509647891,8.40404838,87.562,87.531,3.94742937]
[1770509648094,3.83133457,87.573,87.531,3.94742937]
[1770509648388,3.69485014,87.571,87.531,3.94742937]
[1770509648586,8.40496923,87.57,87.531,3.94742937]
[1770509648790,8.40496923,87.569,87.531,3.94742937]
[1770509648989,8.40496923,87.568,87.531,3.94742937]
[1770509649292,8.40496923,87.567,87.531,3.94742937]
[1770509649494,8.40496923,87.566,87.531,3.94742937]
[1770509649686,8.40496923,87.565,87.531,3.94742937]
[1770509649886,8.40496923,87.564,87.531,3.94742937]
[1770509650082,8.40496923,87.563,87.531,3.94742937]
[1770509650287,8.40496923,87.562,87.531,3.94742937]
[1770509650487,3.69485014,87.571,87.531,3.94742937]
[1770509650689,8.40630493,87.57,87.531,3.94742937]
[1770509650883,8.40630493,87.569,87.531,3.94742937]
[1770509651090,8.40630493,87.568,87.531,3.94742937]
[1770509651391,8.40630493,87.567,87.531,3.94742937]
[1770509651595,8.40630493,87.566,87.531,3.94742937]
[1770509651793,8.40630493,87.565,87.531,3.94742937]
[1770509651996,8.40630493,87.564,87.531,3.94742937]
[1770509652195,8.40630493,87.563,87.531,3.94742937]
[1770509652389,8.40630493,87.562,87.531,3.94742937]
[1770509652584,3.69485014,87.571,87.531,3.94742937]
[1770509652790,11.99967555,87.57,87.531,3.94742937]
[1770509652990,8.40731925,87.569,87.531,3.94742937]
[1770509653191,8.40731925,87.568,87.531,3.94742937]
[1770509653382,8.40731925,87.567,87.531,3.94742937]
[1770509653586,3.5923563,87.57,87.531,3.94742937]
[1770509653587,8.40731925,87.566,87.531,3.94742937]
[1770509653783,8.40731925,87.565,87.531,3.94742937]
[1770509653983,8.40731925,87.564,87.531,3.94742937]
[1770509654187,8.40731925,87.563,87.531,3.94742937]
[1770509654387,3.5923563,87.57,87.531,3.94742937]
[1770509654591,11.99964948,87.569,87.531,3.94742937]
[1770509654791,8.40729318,87.568,87.531,3.94742937]
[1770509654991,8.40729318,87.567,87.531,3.94742937]
[1770509655192,8.40729318,87.566,87.531,3.94742937]
[1770509655387,8.40729318,87.565,87.531,3.94742937]
[1770509655591,3.5923563,87.569,87.531,3.94742937]
[1770509655798,8.40740375,87.568,87.531,3.94742937]
[1770509655998,8.40740375,87.567,87.531,3.94742937]
[1770509656296,8.40740375,87.566,87.531,3.94742937]
[1770509656493,8.40740375,87.565,87.531,3.94742937]
[1770509656798,3.5923563,87.569,87.531,3.94742937]
[1770509656990,8.40763187,87.568,87.531,3.94742937]
[1770509657186,8.40763187,87.567,87.531,3.94742937]
[1770509657391,8.40763187,87.566,87.531,3.94742937]
[1770509657592,8.40763187,87.565,87.531,3.94742937]
[1770509657795,3.5923563,87.569,87.531,3.94742937]
[1770509657996,3.5923563,87.567,87.531,3.94742937]
[1770509658199,8.40800277,87.566,87.531,3.94742937]
[1770509658495,8.40800277,87.565,87.531,3.94742937]
[1770509658798,8.40800277,87.564,87.531,3.94742937]
[1770509658998,8.40800277,87.563,87.531,3.94742937]
[1770509659192,8.40800277,87.562,87.531,3.94742937]
[1770509659394,8.40800277,87.561,87.531,3.94742937]
[1770509659595,8.40800277,87.56,87.531,3.94742937]
[1770509659796,3.5923563,87.567,87.531,3.94742937]
[1770509660101,8.4097215,87.566,87.531,3.94742937]
[1770509660400,8.4097215,87.565,87.531,3.94742937]
[1770509660592,8.4097215,87.564,87.531,3.94742937]
[1770509660795,8.4097215,87.563,87.531,3.94742937]
[1770509660998,8.4097215,87.562,87.531,3.94742937]
[1770509661301,3.5923563,87.567,87.531,3.94742937]
[1770509661302,8.4097215,87.561,87.531,3.94742937]
[1770509661503,8.4097215,87.56,87.531,3.94742937]
[1770509661802,3.5923563,87.567,87.531,3.94742937]
[1770509662097,12.00329672,87.566,87.531,3.94742937]
[1770509662402,8.41094042,87.565,87.531,3.94742937]
[1770509662701,8.41094042,87.564,87.531,3.94742937]
[1770509662897,8.41094042,87.563,87.531,3.94742937]
[1770509663098,8.41094042,87.562,87.531,3.94742937]
[1770509663298,8.41094042,87.561,87.531,3.94742937]
[1770509663502,8.41094042,87.56,87.531,3.94742937]
[1770509663699,8.41094042,87.559,87.531,3.94742937]
[1770509663907,3.5923563,87.566,87.531,3.94742937]
[1770509664199,8.41247961,87.565,87.531,3.94742937]
[1770509664394,8.41247961,87.564,87.531,3.94742937]
[1770509664596,8.41247961,87.563,87.531,3.94742937]
[1770509664793,8.41247961,87.562,87.531,3.94742937]
[1770509665004,8.41247961,87.561,87.531,3.94742937]
[1770509665205,8.41247961,87.56,87.531,3.94742937]
[1770509665404,8.41247961,87.559,87.531,3.94742937]
[1770509665601,8.41247961,87.558,87.531,3.94742937]
[1770509665803,8.41247961,87.557,87.531,3.94742937]
[1770509666004,3.5923563,87.566,87.531,3.94742937]
[1770509666202,8.41428543,87.565,87.531,3.94742937]
[1770509666507,8.41428543,87.564,87.531,3.94742937]
[1770509666806,3.5923563,87.56,87.519,3.70091952]
[1770509667007,3.5923563,87.555,87.504,449.77966266]
[1770509667198,3.5923563,87.552,87.504,449.77966266]
[1770509667394,3.5923563,87.55,87.504,449.77966266]
[1770509667599,3.5923563,87.548,87.504,449.77966266]
[1770509667898,3.5923563,87.546,87.51,3.79221599]
[1770509668098,3.5923563,87.544,87.51,3.79221599]
[1770509668305,3.5923563,87.542,87.51,3.79221599]
[1770509668603,3.5923563,87.54,87.51,3.79221599]
[1770509668803,12.00664173,87.539,87.51,3.79221599]
[1770509669005,3.5923563,87.56,87.521,3.70091952]
[1770509669208,21.31681226,87.587,87.521,3.70091952]
[1770509669209,3.5923563,87.558,87.53,3.79221599]
[1770509669506,3.5923563,87.556,87.53,3.79221599]
[1770509669706,3.5923563,87.554,87.53,3.79221599]
[1770509669904,8.41551709,87.553,87.53,3.79221599]
[1770509670097,12.00787339,87.552,87.53,3.79221599]
[1770509670302,3.5923563,87.552,87.53,3.79221599]
[1770509671208,8.41972371,87.551,87.53,3.79221599]
[1770509671406,8.41972371,87.55,87.53,3.79221599]
[1770509671607,3.5923563,87.552,87.53,3.79221599]
[1770509671807,8.41996867,87.551,87.53,3.79221599]
[1770509672008,8.41996867,87.55,87.53,3.79221599]
[1770509672207,3.5923563,87.552,87.53,3.79221599]
[1770509672411,8.4206003,87.551,87.53,3.79221599]
[1770509672606,8.4206003,87.55,87.53,3.79221599]
[1770509672807,3.5923563,87.562,87.54,3.79221599]
[1770509673208,3.5923563,87.576,87.54,3.79221599]
[1770509679411,3.5923563,87.576,87.55,3.79221599]
[1770509681920,3.5923563,87.576,87.54,3.79221599]
[1770509684617,8.39025066,87.575,87.54,3.79221599]
[1770509684823,8.39025066,87.574,87.54,3.79221599]
[1770509685018,8.39025066,87.573,87.54,3.79221599]
[1770509685318,12.22654841,87.572,87.54,3.79221599]
[1770509685509,8.39025066,87.571,87.54,3.79221599]
[1770509685709,8.39025066,87.57,87.54,3.79221599]
[1770509685913,8.39025066,87.569,87.54,3.79221599]
[1770509686121,8.39025066,87.568,87.54,3.79221599]
[1770509686321,3.83629775,87.572,87.54,3.79221599]
[1770509686322,8.39025066,87.567,87.54,3.79221599]
[1770509686620,8.39025066,87.566,87.54,3.79221599]
[1770509686822,8.39025066,87.565,87.54,3.79221599]
[1770509687015,8.39025066,87.564,87.54,3.79221599]
[1770509687316,8.39025066,87.563,87.54,3.79221599]
[1770509687620,8.39025066,87.562,87.54,3.79221599]
[1770509687918,8.39025066,87.561,87.54,3.79221599]
[1770509688119,8.39025066,87.56,87.54,3.79221599]
[1770509688322,8.39025066,87.559,87.54,3.79221599]
[1770509688521,8.39025066,87.558,87.54,3.79221599]
[1770509688723,3.83629775,87.572,87.54,3.79221599]
[1770509688925,8.3919148,87.571,87.54,3.79221599]
[1770509689224,12.22821255,87.57,87.54,3.79221599]
[1770509689423,8.3919148,87.569,87.54,3.79221599]
[1770509689619,8.3919148,87.568,87.54,3.79221599]
[1770509689822,8.3919148,87.567,87.54,3.79221599]
[1770509690023,8.3919148,87.566,87.54,3.79221599]
[1770509690223,8.3919148,87.565,87.54,3.79221599]
[1770509690522,8.3919148,87.564,87.54,3.79221599]